fUST/lending_fUST_20240527
["ID","MTS","AMOUNT","RATE_DAILY","PERIOD"]
[328021724,1716774644070,-151.0,0.000215,2]
[328021726,1716774644080,-456.033775,0.000215,2]
[328021728,1716774644089,-3000.0,0.0002151,2]
[328021730,1716774644100,-151.0,0.0002151,2]
[328021732,1716774644109,-196.268621,0.0002151,2]
[328021734,1716774644118,-196.268621,0.0002151,2]
[328021736,1716774644127,-456.033775,0.0002151,2]
[328021738,1716774644137,-151.0,0.0002151,2]
[328021740,1716774644147,-456.033775,0.0002151,2]
[328021742,1716774644156,-3000.0,0.0002152,2]
[328021744,1716774644165,-151.0,0.0002152,2]
[328021746,1716774644174,-196.268621,0.0002152,2]
[328021748,1716774644187,-196.268621,0.0002152,2]
[328021750,1716774644198,-456.033775,0.0002152,2]
[328021752,1716774644208,-288.26601,0.0002152,2]
[328021754,1716774644217,-456.033775,0.0002152,2]
[328021756,1716774644228,-151.0,0.00021529,3]
[328021758,1716774644238,-3000.0,0.0002153,2]
[328021760,1716774644248,-151.0,0.0002153,2]
[328021762,1716774644258,-196.268621,0.0002153,2]
[328021764,1716774644268,-196.268621,0.0002153,2]
[328021766,1716774644278,-456.033775,0.0002153,2]
[328021768,1716774644287,-456.033775,0.0002153,2]
[328021770,1716774644297,-3000.0,0.0002154,2]
[328021772,1716774644306,-153.222874,0.0002154,2]
[328021774,1716774644315,-196.268621,0.0002154,2]
[328021776,1716774644324,-196.268621,0.0002154,2]
[328021778,1716774644333,-456.033775,0.0002154,2]
[328021780,1716774644346,-456.033775,0.0002154,2]
[328021782,1716774644356,-3000.0,0.0002155,2]
[328021784,1716774644365,-196.268621,0.0002155,2]
[328021786,1716774644375,-196.268621,0.0002155,2]
[328021788,1716774644384,-456.033775,0.0002155,2]
[328021790,1716774644394,-456.033775,0.0002155,2]
[328021792,1716774644403,-3000.0,0.0002156,2]
[328021794,1716774644412,-196.268621,0.0002156,2]
[328021796,1716774644421,-196.268621,0.0002156,2]
[328021798,1716774644431,-456.033775,0.0002156,2]
[328021800,1716774644441,-456.033775,0.0002156,2]
[328021802,1716774644451,-3000.0,0.0002157,2]
[328021804,1716774644461,-196.268621,0.0002157,2]
[328021806,1716774644470,-196.268621,0.0002157,2]
[328021808,1716774644479,-456.033775,0.0002157,2]
[328021810,1716774644489,-456.033775,0.0002157,2]
[328021812,1716774644498,-3000.0,0.0002158,2]
[328021814,1716774644507,-196.268621,0.0002158,2]
[328021816,1716774644516,-196.268627,0.0002158,2]
[328021818,1716774644525,-456.033775,0.0002158,2]
[328021820,1716774644535,-456.033779,0.0002158,2]
[328021822,1716774644544,-3000.0,0.0002159,2]
[328021824,1716774644553,-3000.0,0.000216,2]
[328021826,1716774644563,-3000.0,0.0002161,2]
[328021828,1716774644572,-3000.0,0.0002162,2]
[328021830,1716774644581,-3000.0,0.0002163,2]
[328021832,1716774644590,-3000.0,0.0002164,2]
[328021834,1716774644600,-182.55955747,0.00021646,2]
[328021836,1716774644609,-154.99270703,0.00021646,2]
[328021838,1716774644619,-156.3574711,0.00021646,2]
[328021840,1716774644628,-1731.97861291,0.00021646,2]
[328021842,1716774644636,-155.43237756,0.00021646,2]
[328021844,1716774644646,-164.34582135,0.00021646,2]
[328021846,1716774644655,-380.71023535,0.00021646,2]
[328021848,1716774644664,-632.14382581,0.00021646,2]
[328021850,1716774644673,-246.06882743,0.00021646,2]
[328021852,1716774644682,-155.23674533,0.00021646,2]
[328021854,1716774644691,-239.67591557,0.00021646,2]
[328021856,1716774644700,-208.1716344,0.00021646,2]
[328021858,1716774644710,-164.09851915,0.00021646,2]
[328021860,1716774644719,-184.66697706,0.00021647,2]
[328021862,1716774644728,-155.35950579,0.00021647,2]
[328021864,1716774644737,-155.05532476,0.00021648,2]
[328021866,1716774644747,-154.99746164,0.00021648,2]
[328021868,1716774644756,-156.00032085,0.00021648,2]
[328021870,1716774644766,-156.94295748,0.00021648,2]
[328021872,1716774644776,-155.25580993,0.00021648,2]
[328021874,1716774644786,-155.46056205,0.00021648,2]
[328021876,1716774644795,-155.00135748,0.00021648,2]
[328021878,1716774644805,-412.95397614,0.00021648,2]
[328021880,1716774644814,-329.94467213,0.00021648,2]
[328021882,1716774644823,-284.49605653,0.00021648,2]
[328021884,1716774644833,-155.59006267,0.00021648,2]
[328021886,1716774644843,-525.9897777,0.00021648,2]
[328021888,1716774644853,-163.6401155,0.00021648,2]
[328021890,1716774644863,-155.2178647,0.00021648,2]
[328021892,1716774644872,-703.86746679,0.00021648,2]
[328021894,1716774644881,-195.32729188,0.00021648,2]
[328021896,1716774644892,-155.34281437,0.00021648,2]
[328021898,1716774644901,-204.47830488,0.00021648,2]
[328021900,1716774644911,-155.18599231,0.00021648,2]
[328021902,1716774644920,-456.69684468,0.00021648,2]
[328021904,1716774644929,-3000.0,0.0002165,2]
[328021906,1716774644939,-3000.0,0.0002166,2]
[328021908,1716774644949,-3000.0,0.0002167,2]
[328021910,1716774644958,-918.91951651,0.00021679,2]
[328021912,1716774644967,-3000.0,0.0002168,2]
[328021914,1716774644976,-3000.0,0.0002169,2]
[328021916,1716774644987,-3000.0,0.000217,2]
[328021918,1716774644996,-3000.0,0.0002171,2]
[328021920,1716774645007,-309.89752947,0.00021719,2]
[328021922,1716774645017,-3000.0,0.0002172,2]
[328021924,1716774645027,-3000.0,0.0002173,2]
[328021926,1716774645036,-410.58295914,0.00021735,2]
[328021928,1716774645046,-276.28306186,0.00021738,2]
[328021930,1716774645055,-3000.0,0.0002174,2]
[328021932,1716774645064,-3000.0,0.0002175,2]
[328021934,1716774645074,-3000.0,0.0002176,2]
[328021936,1716774645084,-3000.0,0.0002177,2]
[328021938,1716774645093,-3000.0,0.0002178,2]
[328021940,1716774645103,-3000.0,0.0002179,2]
[328021942,1716774645112,-3000.0,0.000218,2]
[328021944,1716774645121,-3000.0,0.0002181,2]
[328021946,1716774645131,-3000.0,0.0002182,2]
[328021948,1716774645141,-3000.0,0.0002183,2]
[328021950,1716774645151,-3000.0,0.0002184,2]
[328021952,1716774645160,-3000.0,0.0002185,2]
[328021954,1716774645170,-3000.0,0.0002186,2]
[328021956,1716774645180,-3000.0,0.0002187,2]
[328021958,1716774645195,-3000.0,0.0002188,2]
[328021970,1716774645302,-3000.0,0.0002189,2]
[328021972,1716774645313,-3000.0,0.000219,2]
[328021975,1716774645324,-3000.0,0.0002191,2]
[328021977,1716774645335,-199.306756,0.00021918,2]
[328021979,1716774645345,-154.692894,0.00021918,2]
[328021981,1716774645355,-3000.0,0.0002192,2]
[328021983,1716774645366,-3000.0,0.0002193,2]
[328021984,1716774645375,-3000.0,0.0002194,2]
[328021987,1716774645385,-3000.0,0.0002195,2]
[328021989,1716774645395,-5236.588396,0.0002196,2]
[328021991,1716774645404,-154.96539698,0.00022,2]
[328021993,1716774645415,-151.0,0.00022481,3]
[328021995,1716774645425,-199.306756,0.000232,2]
[328021996,1716774645435,-1160.01820007,0.00023254,2]
[328021999,1716774645445,-222.25814065,0.000239,2]
[328022000,1716774645455,-200.0,0.0002411,2]
[328022002,1716774645465,-425.981617,0.00024384,2]
[328022003,1716774645475,-680.124958,0.00024384,2]
[328022005,1716774645485,-199.306756,0.00024482,2]
[328022007,1716774645495,-174.77770949,0.00025,2]
[328022009,1716774645506,-13375.73791579,0.00025,2]
[328022011,1716774645517,-313.63995883,0.00025926,2]
[328022013,1716774645528,-420.899999,0.000266,2]
[328022015,1716774645538,-1160.01820007,0.00026603,2]
[328022018,1716774645549,-1071.87658992,0.000269,2]
[328022020,1716774645560,-1071.87658988,0.000269,2]
[328022022,1716774645569,-1071.87658988,0.000269,2]
[328022024,1716774645580,-1071.87658988,0.000269,2]
[328022026,1716774645591,-1071.87658988,0.000269,2]
[328022027,1716774645601,-1071.87658988,0.000269,2]
[328022030,1716774645611,-1071.87658988,0.000269,2]
[328022032,1716774645620,-1071.87658988,0.000269,2]
[328022034,1716774645630,-1071.87658988,0.000269,2]
[328022036,1716774645641,-33778.93391651,0.00027,2]
[328022066,1716774645916,-249.993024,0.00027,2]
[328022089,1716774646116,-922.93841404,9.855e-05,2]
[328022091,1716774646125,-9996.42707031,0.00027,2]
[328022093,1716774646135,-1000.0,0.00027041,2]
[328022095,1716774646144,-504.82026978,0.00027082,2]
[328022097,1716774646153,-26290.35396027,0.00027092,3]
[328027144,1716774893850,-1916.43,8.85e-05,2]
[328027188,1716775832686,-691.03459692,7.891e-05,2]
[328027190,1716775832695,-292.0207383,7.892e-05,2]
[328027191,1716775832704,-2946.33745497,7.892e-05,2]
[328027193,1716775832716,-310.0,7.892e-05,2]
[328027196,1716775832729,-500.0,7.892e-05,2]
[328027284,1716775838910,-5813.91732081,7.892e-05,2]
[328027286,1716775838920,-13201.9370605,7.893e-05,2]
[328027288,1716775838933,-1570.92564338,7.893e-05,2]
[328027291,1716775838944,-3899.59352902,7.893e-05,2]
[328027293,1716775838953,-488.43267025,8.846e-05,2]
[328027295,1716775838963,-1870.54761155,8.849e-05,2]
[328027297,1716775838972,-1083.40860465,8.85e-05,2]
[328027557,1716775842738,-3324.96118282,8.85e-05,2]
[328027560,1716775842750,-3494.47052576,8.85e-05,2]
[328027562,1716775842766,-1899.84369747,8.85e-05,2]
[328027563,1716775842776,-2903.90323507,8.851e-05,2]
[328027564,1716775842786,-189.80936441,8.851e-05,2]
[328027565,1716775842796,-621.60380955,8.851e-05,2]
[328027566,1716775842807,-154.95351395,8.926e-05,2]
[328027567,1716775842817,-158.7061959,8.926e-05,2]
[328027568,1716775842827,-154.95351395,8.926e-05,2]
[328027569,1716775842839,-13220.01043594,8.927e-05,2]
[328027614,1716775846753,-1644.16573639,8.927e-05,2]
[328027630,1716776019507,372.15,0.000275,30]
[328027631,1716776043857,372.15,0.000275,30]
[328027634,1716776820378,13572.0,0.00028,120]
[328027637,1716776849403,250.0,6.32e-05,2]
[328027638,1716776900381,2681.89337139,7.25e-05,2]
[328027639,1716776927588,2233.36509913,7.25e-05,2]
[328027640,1716776927623,404.10275923,7.25e-05,2]
[328027641,1716776929208,292.0207383,7.25e-05,2]
[328027642,1716776931910,1902.01092962,7.25e-05,2]
[328027643,1716776937214,158.7061959,7.25e-05,2]
[328027644,1716776939358,403.93533504,7.25e-05,2]
[328027645,1716776940394,9570.25477578,7.25e-05,2]
[328027646,1716776941992,488.43267025,7.25e-05,2]
[328027647,1716776981027,3065.55842789,7.25e-05,2]
[328027726,1716777039006,-1480.74942289,7.252e-05,2]
[328027729,1716777039019,-3920.3,7.252e-05,2]
[328027763,1716777042830,-252.92464018,7.252e-05,2]
[328027768,1716777043070,-4866.85594245,7.252e-05,2]
[328027769,1716777043080,-551.27051016,7.394e-05,2]
[328027770,1716777043089,-523.24502154,7.395e-05,2]
[328027771,1716777043192,-314.01995424,7.395e-05,2]
[328027772,1716777043206,-1556.52765731,7.395e-05,2]
[328027773,1716777043217,-1899.84369747,7.396e-05,2]
[328027774,1716777043227,-12827.49585507,7.397e-05,2]
[328027816,1716777047325,-2106.26515726,7.397e-05,2]
[328027817,1716777047338,-9966.23898767,7.397e-05,2]
[328027818,1716777047347,-371.65505506,8.146e-05,2]
[328027819,1716777047358,-161.74451453,8.75e-05,2]
[328027820,1716777047367,-189.80936441,8.75e-05,2]
[328027821,1716777047376,-514.30567024,8.844e-05,2]
[328027822,1716777047386,-2094.61316302,8.85e-05,2]
[328027823,1716777047397,-16188.7770162,8.927e-05,2]
[328027824,1716777047406,-231.08206128,8.946e-05,2]
[328027825,1716777047415,-2925.22325394,8.947e-05,2]
[328027826,1716777047425,-316.74549754,9.998e-05,2]
[328027827,1716777047434,-29871.25249799,9.999e-05,2]
[328027828,1716777047444,-9408.97315609,0.0001,2]
[328027829,1716777047453,-15000.0,0.0001,2]
[328027830,1716777047463,-792.57626168,0.0001085,2]
[328027845,1716778177231,208.67712066,0.00019999,7]
[328027904,1716778232488,-403.93533504,9.101e-05,2]
[328027905,1716778232498,-509.31069233,9.101e-05,2]
[328028059,1716778244940,-1902.01092962,9.1e-05,2]
[328028060,1716778244950,-567.82401242,9.101e-05,2]
[328028144,1716779432675,-154.95351395,7.806e-05,2]
[328028145,1716779432685,-684.31734061,7.807e-05,2]
[328028147,1716779432697,-36.48338344,7.807e-05,2]
[328028149,1716779432706,-1011.76161656,7.807e-05,2]
[328028151,1716779432719,-1670.13175483,7.807e-05,2]
[328028153,1716779432728,-836.46602351,7.808e-05,2]
[328028155,1716779432738,-154.95351395,7.809e-05,2]
[328028157,1716779432747,-10520.83000552,7.809e-05,2]
[328028159,1716779432756,-281.85841065,7.81e-05,2]
[328028161,1716779432766,-551.27051016,7.81e-05,2]
[328028163,1716779432775,-11070.84264273,7.81e-05,2]
[328028164,1716779432784,-12148.3461218,7.819e-05,2]
[328028166,1716779432793,-158.7061959,9.097e-05,2]
[328028168,1716779432803,-2505.45290604,9.098e-05,2]
[328028170,1716779432812,-528.89075591,9.1e-05,2]
[328028172,1716779432821,-156.72411071,9.1e-05,2]
[328028174,1716779432831,-9390.38788494,9.964e-05,2]
[328028176,1716779432839,-315.0484675,0.00010812,2]
[328028227,1716779438414,-267.45300945,0.00010812,2]
[328028298,1716779444801,-1345.14829684,0.00010812,2]
[328028299,1716779444812,-3908.42677184,0.00010812,2]
[328028318,1716779446775,-315.98978025,0.00010812,2]
[328028365,1716780632889,-826.65721377,8.323e-05,2]
[328028367,1716780632900,-576.58072311,8.323e-05,2]
[328028369,1716780632911,-516.6459393,8.323e-05,2]
[328028436,1716780638919,-8600.94612934,8.323e-05,2]
[328028438,1716780638929,-1902.01092962,8.324e-05,2]
[328028440,1716780638941,-1152.82161356,8.325e-05,2]
[328028442,1716780638951,-24890.0,8.343e-05,2]
[328028444,1716780638961,-547.14039385,9.099e-05,2]
[328028446,1716780638971,-2091.43127022,9.101e-05,2]
[328028447,1716780638981,-5290.59763778,0.0001,2]
[328028449,1716780638992,-894.12846146,0.0001,2]
[328028450,1716780639002,-14085.34255755,0.00010685,2]
[328028451,1716780639015,-914.65744245,0.00010685,2]
[328028452,1716780639026,-1355.90457582,0.00010686,2]
[328028466,1716780643807,-316.74549754,8.322e-05,2]
[328028467,1716780643818,-6154.20831018,0.00010686,2]
[328028486,1716780647050,-1898.86027009,0.00010686,2]
[328028487,1716780647060,-150.0,0.00010748,2]
[328028489,1716780647070,-154.95351395,0.00010812,2]
[328028491,1716780647079,-792.56580615,0.0001085,2]
[328028495,1716780784655,10000.0,0.000275,30]
[328028497,1716780836796,10000.0,0.000275,30]
[328028498,1716780857724,100000.0,0.000275,30]
[328028499,1716780867457,100000.0,0.000275,30]
[328028500,1716780888351,50000.0,0.000275,30]
[328028530,1716781832722,-1007.88974121,9.588e-05,2]
[328028531,1716781832745,-144.93187235,9.588e-05,2]
[328028532,1716781832755,-490.86300648,9.589e-05,2]
[328028533,1716781832766,-570.87837969,9.589e-05,2]
[328028550,1716781838707,-258.89243828,9.589e-05,2]
[328028563,1716781841908,-1279.79523564,9.589e-05,2]
[328028564,1716781841918,-394.99848084,9.589e-05,2]
[328028770,1716782976794,318.17,0.000275,30]
[328028872,1716783037718,-758.41658575,8.536e-05,2]
[328028873,1716783037728,-206.65957813,8.54e-05,2]
[328028877,1716783037780,-1910.19658552,8.54e-05,2]
[328028879,1716783037791,-758.41658575,8.541e-05,2]
[328028881,1716783037801,-8907.47839041,8.632e-05,2]
[328030538,1716784237959,-1870.54761155,7.94e-05,2]
[328030540,1716784237969,-758.41658575,7.941e-05,2]
[328030542,1716784237978,-1303.57860383,7.943e-05,2]
[328030544,1716784237987,-6183.96444387,8.581e-05,2]
[328030794,1716784246339,-18716.03555613,8.581e-05,2]
[328030796,1716784246349,-10116.507245,9.331e-05,2]
[328030798,1716784246358,-4506.48240629,9.587e-05,2]
[328030800,1716784246368,-715.30276916,0.0001,2]
[328030802,1716784246377,-205.85622304,0.0001085,2]
[328030804,1716784246386,-526.93780165,0.0001085,2]
[328030806,1716784246395,-9408.97315609,0.00010879,2]
[328030808,1716784246404,-6885.73209316,0.0001088,2]
[328031244,1716784436329,267.38572896,0.00013697,7]
[328031246,1716784545958,-2600.42906009,8.629e-05,2]
[328031247,1716784545994,-10525.98680899,8.63e-05,2]
[328031248,1716784546033,-16160.77057602,8.632e-05,2]
[328031249,1716784546067,-250.0,0.00010672,2]
[328031250,1716784546103,-321.1694705,0.00010672,2]
[328031251,1716784546137,-758.41658575,0.00010687,2]
[328031252,1716784546171,-4228.46577223,0.00010688,2]
[328031253,1716784546203,-2678.33420319,0.0001088,2]
[328031254,1716784546226,-267.64867022,0.0001093,2]
[328031255,1716784546429,-155.09261085,0.00010957,2]
[328031256,1716784546451,-261.34125049,0.00010958,2]
[328031257,1716784546472,-218.67,0.00010959,2]
[328031258,1716784546494,-278.44,0.00010959,2]
[328031259,1716784546517,-232.04,0.00010959,2]
[328031260,1716784546538,-193.36,0.00010959,2]
[328031261,1716784546560,-161.14,0.00010959,2]
[328031262,1716784546583,-805.7,0.00010959,2]
[328031263,1716784546608,-10405.5548097,0.00011083,2]
[328031264,1716784546631,-572.24221532,0.00012093,2]
[328031265,1716784546653,-1876.945149,0.00013697,2]
[328031266,1716784546675,-6322.83704849,0.00013698,2]
[328031267,1716784546697,-151.0,0.00013699,2]
[328031268,1716784546720,-152.518113,0.00013699,2]
[328031269,1716784546741,-151.0,0.00013699,2]
[328031270,1716784546764,-151.336143,0.00013699,2]
[328031271,1716784546786,-151.0,0.00013699,2]
[328031272,1716784546808,-151.428011,0.00013699,2]
[328031273,1716784546830,-151.407411,0.00013699,2]
[328031274,1716784546851,-151.0,0.00013699,2]
[328031275,1716784546874,-151.0,0.00013699,2]
[328031276,1716784546896,-151.50305,0.00013699,2]
[328031277,1716784546921,-151.0,0.00013699,2]
[328031278,1716784546943,-151.0,0.00013699,2]
[328031279,1716784546968,-152.522659,0.00013699,2]
[328031280,1716784546993,-151.0,0.00013699,2]
[328031281,1716784547018,-152.529007,0.00013699,2]
[328031282,1716784547042,-151.0,0.00013699,2]
[328031283,1716784547064,-157.865,0.00013699,2]
[328031284,1716784547088,-151.0,0.00013699,2]
[328031285,1716784547111,-151.0,0.00013699,2]
[328031286,1716784547134,-151.786757,0.00013699,2]
[328031287,1716784547157,-151.0,0.00013699,2]
[328031288,1716784547181,-151.568878,0.00013699,2]
[328031289,1716784547205,-151.568878,0.00013699,2]
[328031290,1716784547229,-151.568878,0.00013699,2]
[328031291,1716784547253,-151.568878,0.00013699,2]
[328031292,1716784547276,-151.568878,0.00013699,2]
[328031293,1716784547299,-151.568878,0.00013699,2]
[328031294,1716784547322,-155.285415,0.00013699,2]
[328031295,1716784547344,-151.0,0.00013699,2]
[328031296,1716784547367,-151.0,0.00013699,2]
[328031297,1716784547391,-151.0,0.00013699,2]
[328031298,1716784547414,-152.134712,0.00013699,2]
[328031299,1716784547436,-3345.47253,0.00013699,2]
[328031300,1716784547458,-3345.47253,0.00013699,2]
[328031301,1716784547483,-3345.47253,0.00013699,2]
[328031302,1716784547506,-3345.47253,0.00013699,2]
[328031303,1716784547527,-3345.47253,0.00013699,2]
[328031304,1716784547549,-3345.47253,0.00013699,2]
[328031305,1716784547572,-3345.47253,0.00013699,2]
[328031306,1716784547595,-3345.47253,0.00013699,2]
[328031307,1716784547618,-3345.47253,0.00013699,2]
[328031308,1716784547640,-3345.47253,0.00013699,2]
[328031309,1716784547662,-2415.96092316,0.00013699,2]
[328031377,1716785433011,-4228.46577223,0.00013503,2]
[328031378,1716785433021,-223.61796421,0.00013697,2]
[328031379,1716785433030,-809.09933271,0.00013698,2]
[328031380,1716785433039,-152.33467,0.00016438,2]
[328031381,1716785433049,-166.5,0.00017773,3]
[328031382,1716785433058,-166.5,0.00017773,2]
[328031383,1716785433067,-151.0,0.00017773,3]
[328031384,1716785433077,-151.0,0.00017773,2]
[328031385,1716785433086,-1189.23209656,0.00017998,2]
[328031386,1716785433095,-239.00629442,0.00017999,2]
[328031387,1716785433104,-1324.2,0.00018,2]
[328031388,1716785433114,-4893.87076878,0.00018601,2]
[328031389,1716785433123,-154.3105657,0.000187,2]
[328031390,1716785433133,-291.01619301,0.000189,2]
[328031391,1716785433142,-1078.19952511,0.00018906,2]
[328031392,1716785433151,-457.79377224,0.00018982,2]
[328031393,1716785433160,-283.12958688,0.00018997,2]
[328031394,1716785433169,-1724.86814141,0.00018997,2]
[328031395,1716785433179,-554.94233107,0.00018998,2]
[328031396,1716785433188,-155.17266796,0.00018998,2]
[328031397,1716785433198,-1887.40641283,0.00018998,2]
[328031398,1716785433208,-611.7883718,0.00018998,2]
[328031399,1716785433221,-373.48123647,0.00018999,2]
[328031400,1716785433230,-837.54397812,0.00018999,2]
[328031401,1716785433240,-211.94086845,0.00018999,2]
[328031402,1716785433250,-159.43745516,0.00018999,2]
[328031403,1716785433260,-20000.0,0.00019,4]
[328031404,1716785433270,-457.79377224,0.00019006,2]
[328031405,1716785433280,-457.79377224,0.0001903,2]
[328031406,1716785433292,-457.79377224,0.00019054,2]
[328031407,1716785433302,-166.5,0.00019066,2]
[328031408,1716785433311,-151.0,0.00019066,2]
[328031409,1716785433321,-457.79377224,0.00019078,2]
[328031410,1716785433330,-209.26432074,0.00019172,2]
[328031411,1716785433340,-395.68345474,0.00019174,2]
[328031412,1716785433350,-1640.77135201,0.00019176,2]
[328031413,1716785433360,-2247.74132306,0.00019176,2]
[328031414,1716785433369,-342.19978258,0.00019176,2]
[328031415,1716785433379,-500.0,0.00019178,2]
[328031416,1716785433390,-500.0,0.00019178,2]
[328031417,1716785433399,-230.98615273,0.00019178,2]
[328031418,1716785433409,-500.0,0.00019178,2]
[328031419,1716785433418,-230.16178549,0.00019178,2]
[328031420,1716785433428,-500.0,0.00019178,2]
[328031421,1716785433437,-500.0,0.00019178,2]
[328031422,1716785433447,-511.66120131,0.00019178,2]
[328031423,1716785433456,-500.0,0.00019178,2]
[328031424,1716785433469,-500.0,0.00019178,2]
[328031425,1716785433478,-432.21671152,0.00019178,2]
[328031426,1716785433488,-500.0,0.00019178,2]
[328031427,1716785433497,-500.0,0.00019178,2]
[328031428,1716785433506,-500.0,0.00019178,2]
[328031429,1716785433516,-500.0,0.00019178,2]
[328031430,1716785433525,-500.0,0.00019178,2]
[328031431,1716785433535,-500.0,0.00019178,2]
[328031432,1716785433545,-500.0,0.00019178,2]
[328031433,1716785433554,-500.0,0.00019178,2]
[328031434,1716785433564,-500.0,0.00019178,2]
[328031435,1716785433573,-500.0,0.00019178,2]
[328031436,1716785433582,-500.0,0.00019178,2]
[328031437,1716785433592,-313.57622742,0.00019178,2]
[328031438,1716785433721,-500.0,0.00019178,2]
[328031439,1716785433730,-500.0,0.00019178,2]
[328031440,1716785433739,-500.0,0.00019178,2]
[328031441,1716785433748,-500.0,0.00019178,2]
[328031442,1716785433757,-500.0,0.00019178,2]
[328031443,1716785433766,-500.0,0.00019178,2]
[328031444,1716785433776,-500.0,0.00019178,2]
[328031445,1716785433785,-500.0,0.00019178,2]
[328031446,1716785433795,-158.75884628,0.00019178,2]
[328031447,1716785433804,-500.0,0.00019178,2]
[328031448,1716785433813,-500.0,0.00019178,2]
[328031449,1716785433822,-355.25197399,0.00019178,2]
[328031450,1716785433832,-500.0,0.00019178,2]
[328031451,1716785433842,-500.0,0.00019178,2]
[328031452,1716785433852,-500.0,0.00019178,2]
[328031453,1716785433862,-500.0,0.00019178,2]
[328031454,1716785433871,-500.0,0.00019178,2]
[328031455,1716785433881,-500.0,0.00019178,2]
[328031456,1716785433890,-500.0,0.00019178,2]
[328031457,1716785433899,-500.0,0.00019178,2]
[328031458,1716785433908,-500.0,0.00019178,2]
[328031459,1716785433917,-500.0,0.00019178,2]
[328031460,1716785433926,-500.0,0.00019178,2]
[328031461,1716785433935,-293.66245341,0.00019178,2]
[328031462,1716785433944,-500.0,0.00019178,2]
[328031463,1716785433954,-500.0,0.00019178,2]
[328031464,1716785433963,-500.0,0.00019178,2]
[328031465,1716785433975,-500.0,0.00019178,2]
[328031466,1716785433984,-500.0,0.00019178,2]
[328031467,1716785433993,-500.0,0.00019178,2]
[328031468,1716785434003,-500.0,0.00019178,2]
[328031469,1716785434012,-500.0,0.00019178,2]
[328031470,1716785434021,-500.0,0.00019178,2]
[328031471,1716785434030,-500.0,0.00019178,2]
[328031472,1716785434040,-500.0,0.00019178,2]
[328031473,1716785434049,-500.0,0.00019178,2]
[328031474,1716785434058,-2611.75386389,0.00019178,2]
[328031475,1716785434068,-2611.75386389,0.00019178,2]
[328031476,1716785434077,-2611.75386389,0.00019178,2]
[328031477,1716785434086,-2611.75386389,0.00019178,2]
[328031478,1716785434095,-2611.75386389,0.00019178,2]
[328031479,1716785434105,-830.31450745,0.00019178,2]
[328031480,1716785434119,-791.88365063,0.00019178,2]
[328031540,1716785443281,-989.55570581,0.00019178,2]
[328031541,1716785443292,-2611.75386389,0.00019178,2]
[328031542,1716785443302,-2611.75386389,0.00019178,2]
[328031543,1716785443312,-2611.75386389,0.00019178,2]
[328031544,1716785443321,-2611.75386389,0.00019178,2]
[328031545,1716785443330,-2611.75386389,0.00019178,2]
[328031546,1716785443339,-2611.75386389,0.00019178,2]
[328031548,1716785443349,-2611.75386389,0.00019178,2]
[328031549,1716785443359,-1088.99136268,0.00019178,2]
[328031550,1716785444219,-385.989009,0.00019178,2]
[328031551,1716785444232,-394.22731001,0.00019178,2]
[328031552,1716785444244,-742.5461822,0.00019178,2]
[328031553,1716785444254,-668.84185047,0.00019178,2]
[328031622,1716786632532,-175.80560738,9.269e-05,2]
[328031632,1716786632659,-215.91037311,9.27e-05,2]
[328031633,1716786632691,-155.0,9.27e-05,2]
[328031634,1716786632702,-1979.63054003,9.27e-05,2]
[328031635,1716786632711,-1583.26443295,9.27e-05,2]
[328031636,1716786632721,-1498.23255871,9.271e-05,2]
[328031637,1716786632731,-2195.54091314,9.272e-05,2]
[328031638,1716786632741,-271.52046402,0.00013599,2]
[328031639,1716786632751,-42014.70687157,0.00013698,2]
[328031640,1716786632761,-455.357848,0.00013699,2]
[328031641,1716786632771,-3000.0,0.00013699,2]
[328031642,1716786632780,-150.78,0.00016544,2]
[328031643,1716786632790,-151.0,0.00017696,3]
[328031644,1716786632799,-151.0,0.00017696,2]
[328031645,1716786632808,-924.3509767,0.00018217,2]
[328031646,1716786632818,-1681.01517602,0.00018601,2]
[328031647,1716786632827,-194.01079534,0.000189,2]
[328031648,1716786632836,-151.0,0.00018996,2]
[328031649,1716786632846,-4228.46577223,0.00019061,2]
[328031650,1716786632855,-233.83691205,0.00019176,2]